fUSD/lending_fUSD_20250716
["ID","MTS","AMOUNT","RATE_DAILY","PERIOD"]
[372491829,1752663043195,-151.0,0.00021917,2]
[372491832,1752663043204,-460.0,0.00021917,2]
[372491834,1752663043215,-151.0,0.00021917,2]
[372491836,1752663043224,-460.0,0.00021917,2]
[372491838,1752663043234,-460.0,0.00021917,2]
[372491840,1752663043247,-460.0,0.00021917,2]
[372491842,1752663043257,-509.23,0.00021917,2]
[372491844,1752663043267,-460.0,0.00021917,2]
[372491846,1752663043277,-460.0,0.00021917,2]
[372491848,1752663043287,-460.0,0.00021917,2]
[372491850,1752663043298,-732.88,0.00021917,2]
[372491852,1752663043308,-1012.49,0.00021917,2]
[372491854,1752663043319,-992.29,0.00021917,2]
[372491856,1752663043331,-518.81,0.00021917,2]
[372491858,1752663043341,-460.0,0.00021917,2]
[372491860,1752663043351,-460.0,0.00021917,2]
[372491862,1752663043360,-1830.19,0.00021917,2]
[372491865,1752663043370,-460.0,0.00021917,2]
[372491867,1752663043379,-1118.14,0.00021917,2]
[372491869,1752663043389,-192.81936062,0.00021917,2]
[372491871,1752663043398,-460.0,0.00021917,2]
[372491873,1752663043407,-698.13,0.00021917,2]
[372491875,1752663043417,-460.0,0.00021917,2]
[372491877,1752663043426,-536.27,0.00021917,2]
[372491879,1752663043435,-460.0,0.00021917,2]
[372491881,1752663043444,-460.0,0.00021917,2]
[372491883,1752663043453,-460.0,0.00021917,2]
[372491885,1752663043462,-1149.74,0.00021917,2]
[372491887,1752663043471,-460.0,0.00021917,2]
[372491889,1752663043480,-556.57184978,0.00021917,2]
[372491891,1752663043489,-460.0,0.00021917,2]
[372491893,1752663043498,-460.0,0.00021917,2]
[372491895,1752663043509,-1545.31,0.00021917,2]
[372491897,1752663043521,-460.0,0.00021917,2]
[372491899,1752663043529,-460.0,0.00021917,2]
[372491901,1752663043538,-460.0,0.00021917,2]
[372491903,1752663043548,-460.0,0.00021917,2]
[372491905,1752663043556,-460.0,0.00021917,2]
[372491907,1752663043565,-726.17,0.00021917,2]
[372491909,1752663043574,-1284.09,0.00021917,2]
[372491912,1752663043585,-460.0,0.00021917,2]
[372491914,1752663043594,-460.0,0.00021917,2]
[372491916,1752663043604,-460.0,0.00021917,2]
[372491918,1752663043613,-1215.86,0.00021917,2]
[372491920,1752663043623,-460.0,0.00021917,2]
[372491922,1752663043632,-460.0,0.00021917,2]
[372491924,1752663043641,-501.15,0.00021917,2]
[372491926,1752663043651,-761.3,0.00021917,2]
[372491928,1752663043662,-490.0,0.00021917,2]
[372491930,1752663043672,-460.0,0.00021917,2]
[372491932,1752663043680,-639.95,0.00021917,2]
[372491934,1752663043687,-460.0,0.00021917,2]
[372491935,1752663043694,-460.0,0.00021917,2]
[372491937,1752663043703,-424.52056497,0.00021917,2]
[372491940,1752663043711,-645.67,0.00021917,2]
[372491942,1752663043719,-1102.51,0.00021917,2]
[372491944,1752663043727,-460.0,0.00021917,2]
[372491946,1752663043736,-460.0,0.00021917,2]
[372491948,1752663043744,-482.63,0.00021917,2]
[372491950,1752663043751,-555.69,0.00021917,2]
[372491951,1752663043758,-486.85,0.00021917,2]
[372491953,1752663043766,-460.0,0.00021917,2]
[372491956,1752663043776,-460.0,0.00021917,2]
[372491958,1752663043786,-460.0,0.00021917,2]
[372491960,1752663043796,-460.0,0.00021917,2]
[372491962,1752663043806,-460.0,0.00021917,2]
[372491964,1752663043816,-782.15,0.00021917,2]
[372491966,1752663043825,-772.4,0.00021917,2]
[372491968,1752663043835,-1307.09,0.00021917,2]
[372491970,1752663043845,-966.62,0.00021917,2]
[372491972,1752663043854,-752.28,0.00021917,2]
[372491974,1752663043864,-563.43,0.00021917,2]
[372491976,1752663043873,-460.0,0.00021917,2]
[372491978,1752663043882,-460.0,0.00021917,2]
[372491980,1752663043892,-1360.67,0.00021917,2]
[372491982,1752663043901,-839.82,0.00021917,2]
[372491984,1752663043911,-460.0,0.00021917,2]
[372491986,1752663043920,-473.28,0.00021917,2]
[372491988,1752663043930,-460.0,0.00021917,2]
[372491990,1752663043939,-151.250479,0.00021917,2]
[372491992,1752663043949,-691.75,0.00021917,2]
[372491994,1752663043958,-460.0,0.00021917,2]
[372491996,1752663043968,-151.0,0.00021917,2]
[372491998,1752663043978,-460.0,0.00021917,2]
[372492000,1752663043987,-151.0,0.00021917,2]
[372492002,1752663043997,-151.0,0.00021917,2]
[372492004,1752663044006,-460.0,0.00021917,2]
[372492006,1752663044016,-151.0,0.00021917,2]
[372492008,1752663044026,-1030.19,0.00021917,2]
[372492010,1752663044035,-517.48,0.00021917,2]
[372492012,1752663044045,-151.0,0.00021917,2]
[372492014,1752663044055,-151.0,0.00021917,2]
[372492016,1752663044065,-517.7,0.00021917,2]
[372492018,1752663044074,-151.0,0.00021917,2]
[372492020,1752663044085,-151.0,0.00021917,2]
[372492022,1752663044094,-151.0,0.00021917,2]
[372492024,1752663044103,-162.193536,0.00021917,2]
[372492026,1752663044114,-1612.9,0.00021917,2]
[372492028,1752663044124,-460.0,0.00021917,2]
[372492030,1752663044133,-483.47314674,0.00021917,2]
[372492032,1752663044143,-497.86,0.00021917,2]
[372492034,1752663044152,-346.57521063,0.00021917,2]
[372492036,1752663044163,-460.0,0.00021917,2]
[372492038,1752663044177,-1319.17,0.00021917,2]
[372492040,1752663044187,-1348.58,0.00021917,2]
[372492042,1752663044196,-876.39,0.00021917,2]
[372492044,1752663044206,-460.0,0.00021917,2]
[372492046,1752663044218,-460.0,0.00021917,2]
[372492048,1752663044227,-543.91825323,0.00021917,2]
[372492050,1752663044237,-460.0,0.00021917,2]
[372492052,1752663044249,-460.0,0.00021917,2]
[372492054,1752663044260,-460.0,0.00021917,2]
[372492056,1752663044269,-460.0,0.00021917,2]
[372492058,1752663044278,-521.22,0.00021917,2]
[372492060,1752663044287,-900.25,0.00021917,2]
[372492062,1752663044298,-460.0,0.00021917,2]
[372492064,1752663044308,-460.0,0.00021917,2]
[372492066,1752663044318,-460.0,0.00021917,2]
[372492069,1752663044329,-794.42,0.00021917,2]
[372492071,1752663044340,-460.0,0.00021917,2]
[372492073,1752663044350,-460.0,0.00021917,2]
[372492075,1752663044361,-460.0,0.00021917,2]
[372492077,1752663044370,-460.0,0.00021917,2]
[372492079,1752663044380,-460.0,0.00021917,2]
[372492081,1752663044390,-671.7,0.00021917,2]
[372492083,1752663044399,-460.0,0.00021917,2]
[372492085,1752663044409,-1426.38,0.00021917,2]
[372492087,1752663044419,-617.3,0.00021917,2]
[372492089,1752663044430,-500.0,0.00021917,2]
[372492091,1752663044439,-500.0,0.00021917,2]
[372492093,1752663044448,-500.0,0.00021917,2]
[372492095,1752663044458,-460.0,0.00021917,2]
[372492097,1752663044467,-460.0,0.00021917,2]
[372492099,1752663044477,-460.0,0.00021917,2]
[372492101,1752663044487,-151.0,0.00021917,2]
[372492103,1752663044497,-151.0,0.00021917,2]
[372492105,1752663044507,-460.0,0.00021917,2]
[372492107,1752663044517,-460.0,0.00021917,2]
[372492109,1752663044527,-151.0,0.00021917,2]
[372492111,1752663044537,-151.0,0.00021917,2]
[372492113,1752663044547,-151.0,0.00021917,2]
[372492115,1752663044557,-461.04736424,0.00021917,2]
[372492117,1752663044568,-3492.16,0.00021917,2]
[372492119,1752663044578,-460.0,0.00021917,2]
[372492121,1752663044587,-460.0,0.00021917,2]
[372492123,1752663044598,-960.48,0.00021917,2]
[372492125,1752663044607,-460.0,0.00021917,2]
[372492127,1752663044617,-697.02,0.00021917,2]
[372492129,1752663044628,-460.0,0.00021917,2]
[372492131,1752663044637,-859.04,0.00021917,2]
[372492133,1752663044647,-460.0,0.00021917,2]
[372492135,1752663044656,-460.0,0.00021917,2]
[372492137,1752663044666,-578.96,0.00021917,2]
[372492139,1752663044675,-460.0,0.00021917,2]
[372492141,1752663044684,-737.1,0.00021917,2]
[372492143,1752663044694,-3159.42,0.00021917,2]
[372492145,1752663044703,-480.69,0.00021917,2]
[372492147,1752663044713,-460.0,0.00021917,2]
[372492149,1752663044722,-658.34,0.00021917,2]
[372492151,1752663044732,-1247.6,0.00021917,2]
[372492153,1752663044741,-460.0,0.00021917,2]
[372492155,1752663044751,-460.0,0.00021917,2]
[372492157,1752663044760,-460.0,0.00021917,2]
[372492158,1752663044769,-460.0,0.00021917,2]
[372492159,1752663044779,-460.0,0.00021917,2]
[372492160,1752663044788,-151.0,0.00021917,2]
[372492161,1752663044798,-460.0,0.00021917,2]
[372492162,1752663044810,-151.0,0.00021917,2]
[372492163,1752663044820,-460.0,0.00021917,2]
[372492164,1752663044829,-151.0,0.00021917,2]
[372492166,1752663044839,-151.0,0.00021917,2]
[372492168,1752663044848,-151.0,0.00021917,2]
[372492170,1752663044858,-1704.14,0.00021917,2]
[372492172,1752663044868,-889.84,0.00021917,2]
[372492174,1752663044877,-460.0,0.00021917,2]
[372492176,1752663044887,-460.0,0.00021917,2]
[372492178,1752663044897,-151.0,0.00021917,2]
[372492180,1752663044907,-218.210209,0.00021917,2]
[372492182,1752663044917,-460.0,0.00021917,2]
[372492184,1752663044927,-460.0,0.00021917,2]
[372492186,1752663044937,-460.0,0.00021917,2]
[372492188,1752663044946,-460.0,0.00021917,2]
[372492189,1752663044956,-980.18,0.00021917,2]
[372492192,1752663044966,-500.0,0.00021917,2]
[372492194,1752663044976,-500.0,0.00021917,2]
[372492196,1752663044986,-864.4,0.00021917,2]
[372492198,1752663044995,-500.0,0.00021917,2]
[372492199,1752663045005,-460.0,0.00021917,2]
[372492202,1752663045015,-460.0,0.00021917,2]
[372492204,1752663045025,-460.0,0.00021917,2]
[372492206,1752663045035,-1337.4,0.00021917,2]
[372492208,1752663045045,-460.0,0.00021917,2]
[372492210,1752663045054,-538.85,0.00021917,2]
[372492212,1752663045064,-460.0,0.00021917,2]
[372492214,1752663045074,-460.0,0.00021917,2]
[372492216,1752663045085,-460.0,0.00021917,2]
[372492218,1752663045095,-439.19,0.00021917,2]
[372492220,1752663045105,-460.0,0.00021917,2]
[372492222,1752663045114,-460.0,0.00021917,2]
[372492224,1752663045124,-460.0,0.00021917,2]
[372492226,1752663045134,-460.0,0.00021917,2]
[372492228,1752663045144,-770.68,0.00021917,2]
[372492230,1752663045154,-460.0,0.00021917,2]
[372492232,1752663045166,-1191.07,0.00021917,2]
[372492234,1752663045176,-464.13342466,0.00021917,2]
[372492236,1752663045188,-460.0,0.00021917,2]
[372492238,1752663045197,-460.0,0.00021917,2]
[372492240,1752663045207,-460.0,0.00021917,2]
[372492242,1752663045218,-1520.94,0.00021917,2]
[372492244,1752663045228,-554.47,0.00021917,2]
[372492246,1752663045237,-460.0,0.00021917,2]
[372492248,1752663045250,-460.0,0.00021917,2]
[372492250,1752663045261,-460.0,0.00021917,2]
[372492253,1752663045271,-575.57,0.00021917,2]
[372492255,1752663045281,-460.0,0.00021917,2]
[372492257,1752663045292,-460.0,0.00021917,2]
[372492259,1752663045301,-460.0,0.00021917,2]
[372492261,1752663045311,-460.0,0.00021917,2]
[372492263,1752663045321,-502.673306,0.00021917,2]
[372492265,1752663045332,-460.0,0.00021917,2]
[372492268,1752663045342,-502.673306,0.00021917,2]
[372492271,1752663045352,-502.673306,0.00021917,2]
[372492274,1752663045362,-502.673306,0.00021917,2]
[372492294,1752663045476,-460.0,0.00021917,2]
[372492296,1752663045489,-502.673306,0.00021917,2]
[372492298,1752663045498,-614.94,0.00021917,2]
[372492300,1752663045507,-508.1,0.00021917,2]
[372492302,1752663045516,-2763.38,0.00021917,2]
[372492304,1752663045526,-460.0,0.00021917,2]
[372492306,1752663045535,-460.0,0.00021917,2]
[372492308,1752663045545,-508.9,0.00021917,2]
[372492310,1752663045556,-463.2396678,0.00021917,2]
[372492312,1752663045566,-502.673306,0.00021917,2]
[372492314,1752663045576,-502.673306,0.00021917,2]
[372492316,1752663045587,-502.673306,0.00021917,2]
[372492318,1752663045596,-460.0,0.00021917,2]
[372492320,1752663045605,-502.673306,0.00021917,2]
[372492322,1752663045614,-1649.66,0.00021917,2]
[372492324,1752663045623,-502.673306,0.00021917,2]
[372492326,1752663045632,-460.0,0.00021917,2]
[372492328,1752663045641,-460.0,0.00021917,2]
[372492330,1752663045651,-1198.93,0.00021917,2]
[372492332,1752663045659,-460.0,0.00021917,2]
[372492334,1752663045669,-500.0,0.00021917,2]
[372492336,1752663045678,-500.0,0.00021917,2]
[372492338,1752663045687,-500.0,0.00021917,2]
[372492340,1752663045697,-460.0,0.00021917,2]
[372492342,1752663045706,-500.0,0.00021917,2]
[372492344,1752663045715,-500.0,0.00021917,2]
[372492346,1752663045725,-500.0,0.00021917,2]
[372492348,1752663045734,-500.0,0.00021917,2]
[372492351,1752663045743,-500.0,0.00021917,2]
[372492352,1752663045752,-500.0,0.00021917,2]
[372492354,1752663045761,-1580.32,0.00021917,2]
[372492357,1752663045771,-1021.74,0.00021917,2]
[372492359,1752663045780,-460.0,0.00021917,2]
[372492361,1752663045789,-460.0,0.00021917,2]
[372492363,1752663045799,-460.0,0.00021917,2]
[372492365,1752663045809,-460.0,0.00021917,2]
[372492366,1752663045818,-460.0,0.00021917,2]
[372492368,1752663045827,-151.0,0.00021917,2]
[372492371,1752663045838,-2741.41,0.00021917,2]
[372492373,1752663045847,-460.0,0.00021917,2]
[372492374,1752663045856,-151.0,0.00021917,2]
[372492376,1752663045866,-151.0,0.00021917,2]
[372492377,1752663045875,-151.0,0.00021917,2]
[372492379,1752663045883,-151.0,0.00021917,2]
[372492381,1752663045893,-151.0,0.00021917,2]
[372492383,1752663045902,-151.0,0.00021917,2]
[372492385,1752663045911,-151.0,0.00021917,2]
[372492387,1752663045921,-151.0,0.00021917,2]
[372492389,1752663045930,-228.543456,0.00021917,2]
[372492391,1752663045939,-460.0,0.00021917,2]
[372492393,1752663045948,-1900.49,0.00021917,2]
[372492395,1752663045957,-3441.76,0.00021917,2]
[372492397,1752663045966,-460.0,0.00021917,2]
[372492399,1752663045975,-462.71561339,0.00021917,2]
[372492401,1752663045984,-2750.23,0.00021917,2]
[372492403,1752663045994,-460.0,0.00021917,2]
[372492405,1752663046003,-460.0,0.00021917,2]
[372492407,1752663046012,-504.67,0.00021917,2]
[372492409,1752663046021,-1705.39,0.00021917,2]
[372492411,1752663046030,-460.0,0.00021917,2]
[372492413,1752663046039,-460.0,0.00021917,2]
[372492415,1752663046049,-460.0,0.00021917,2]
[372492417,1752663046058,-215.532746,0.00021917,2]
[372492419,1752663046067,-215.532746,0.00021917,2]
[372492421,1752663046076,-215.532746,0.00021917,2]
[372492423,1752663046088,-215.532746,0.00021917,2]
[372492425,1752663046097,-462.30433512,0.00021917,2]
[372492427,1752663046107,-962.35,0.00021917,2]
[372492429,1752663046116,-215.532746,0.00021917,2]
[372492431,1752663046125,-460.0,0.00021917,2]
[372492433,1752663046134,-460.0,0.00021917,2]
[372492435,1752663046145,-460.0,0.00021917,2]
[372492437,1752663046154,-288.51981875,0.00021917,2]
[372492439,1752663046165,-460.73339653,0.00021917,2]
[372492441,1752663046174,-462.0086326,0.00021917,2]
[372492443,1752663046183,-460.0,0.00021917,2]
[372492445,1752663046193,-460.0,0.00021917,2]
[372492447,1752663046203,-151.0,0.00021917,2]
[372492449,1752663046213,-478.83,0.00021917,2]
[372492451,1752663046222,-151.0,0.00021917,2]
[372492453,1752663046231,-460.0,0.00021917,2]
[372492454,1752663046241,-460.0,0.00021917,2]
[372492456,1752663046251,-151.0,0.00021917,2]
[372492459,1752663046261,-460.0,0.00021917,2]
[372492461,1752663046271,-215.532746,0.00021917,2]
[372492463,1752663046280,-151.0,0.00021917,2]
[372492465,1752663046290,-215.532746,0.00021917,2]
[372492467,1752663046300,-151.0,0.00021917,2]
[372492468,1752663046309,-215.532746,0.00021917,2]
[372492470,1752663046318,-215.532746,0.00021917,2]
[372492472,1752663046327,-151.0,0.00021917,2]
[372492474,1752663046338,-215.532746,0.00021917,2]
[372492476,1752663046347,-525.54,0.00021917,2]
[372492478,1752663046356,-1258.33853,0.00021917,2]
[372492480,1752663046366,-1258.33853,0.00021917,2]
[372492482,1752663046375,-1258.33853,0.00021917,2]
[372492484,1752663046385,-1147.29,0.00021917,2]
[372492486,1752663046394,-1258.33853,0.00021917,2]
[372492488,1752663046403,-1258.33853,0.00021917,2]
[372492490,1752663046414,-460.0,0.00021917,2]
[372492492,1752663046423,-348.94545551,0.00021917,2]
[372492494,1752663046433,-460.0,0.00021917,2]
[372492496,1752663046442,-460.0,0.00021917,2]
[372492497,1752663046451,-460.0,0.00021917,2]
[372492498,1752663046461,-737.1,0.00021917,2]
[372492499,1752663046470,-460.0,0.00021917,2]
[372492500,1752663046479,-1258.33853,0.00021917,2]
[372492501,1752663046489,-1258.33853,0.00021917,2]
[372492502,1752663046498,-460.0,0.00021917,2]
[372492503,1752663046509,-1258.33853,0.00021917,2]
[372492504,1752663046519,-1258.33853,0.00021917,2]
[372492505,1752663046528,-510.55412271,0.00021917,2]
[372492506,1752663046538,-460.0,0.00021917,2]
[372492507,1752663046547,-460.0,0.00021917,2]
[372492508,1752663046557,-1258.33853,0.00021917,2]
[372492510,1752663046567,-460.0,0.00021917,2]
[372492513,1752663046577,-1861.51,0.00021917,2]
[372492515,1752663046588,-515.07861425,0.00021917,2]
[372492517,1752663046597,-509.86,0.00021917,2]
[372492519,1752663046607,-460.0,0.00021917,2]
[372492521,1752663046617,-1541.82,0.00021917,2]
[372492523,1752663046627,-460.0,0.00021917,2]
[372492525,1752663046636,-1161.16,0.00021917,2]
[372492527,1752663046646,-500.0,0.00021917,2]
[372492529,1752663046655,-500.0,0.00021917,2]
[372492531,1752663046664,-500.0,0.00021917,2]
[372492533,1752663046673,-464.05,0.00021917,2]
[372492534,1752663046683,-500.0,0.00021917,2]
[372492536,1752663046692,-460.0,0.00021917,2]
[372492539,1752663046703,-1367.94,0.00021917,2]
[372492541,1752663046713,-500.0,0.00021917,2]
[372492543,1752663046726,-500.0,0.00021917,2]
[372492545,1752663046735,-500.0,0.00021917,2]
[372492547,1752663046744,-500.0,0.00021917,2]
[372492549,1752663046753,-500.0,0.00021917,2]
[372492550,1752663046762,-515.0,0.00021917,2]
[372492551,1752663046771,-539.02,0.00021917,2]
[372492552,1752663046785,-460.0,0.00021917,2]
[372492553,1752663046795,-460.0,0.00021917,2]
[372492554,1752663046804,-460.0,0.00021917,2]
[372492555,1752663046814,-796.7,0.00021917,2]
[372492556,1752663046824,-460.0,0.00021917,2]
[372492557,1752663046835,-556.0,0.00021917,2]
[372492558,1752663046846,-460.0,0.00021917,2]
[372492559,1752663046855,-151.532438,0.00021917,2]
[372492560,1752663046865,-460.0,0.00021917,2]
[372492562,1752663046875,-1604.58,0.00021917,2]
[372492563,1752663046884,-2639.83,0.00021917,2]
[372492565,1752663046894,-460.0,0.00021917,2]
[372492567,1752663046904,-460.0,0.00021917,2]
[372492569,1752663046914,-2767.68,0.00021917,2]
[372492570,1752663046924,-460.0,0.00021917,2]
[372492571,1752663046933,-2045.95,0.00021917,2]
[372492572,1752663046943,-720.83,0.00021917,2]
[372492573,1752663046954,-460.0,0.00021917,2]
[372492574,1752663046963,-460.0,0.00021917,2]
[372492575,1752663046973,-151.0,0.00021917,2]
[372492576,1752663046983,-151.0,0.00021917,2]
[372492577,1752663046992,-500.0,0.00021917,2]
[372492578,1752663047001,-152.604864,0.00021917,2]
[372492579,1752663047010,-473.95702472,0.00021917,2]
[372492581,1752663047019,-460.0,0.00021917,2]
[372492583,1752663047029,-500.0,0.00021917,2]
[372492585,1752663047038,-500.0,0.00021917,2]
[372492587,1752663047048,-995.1,0.00021917,2]
[372492589,1752663047058,-500.0,0.00021917,2]
[372492591,1752663047067,-500.0,0.00021917,2]
[372492593,1752663047077,-500.0,0.00021917,2]
[372492595,1752663047088,-500.0,0.00021917,2]
[372492597,1752663047098,-460.0,0.00021917,2]
[372492599,1752663047107,-500.0,0.00021917,2]
[372492601,1752663047116,-460.0,0.00021917,2]
[372492603,1752663047126,-500.0,0.00021917,2]
[372492605,1752663047135,-460.0,0.00021917,2]
[372492607,1752663047144,-474.83,0.00021917,2]
[372492609,1752663047154,-465.39,0.00021917,2]
[372492610,1752663047163,-460.0,0.00021917,2]
[372492612,1752663047176,-460.0,0.00021917,2]
[372492614,1752663047186,-460.0,0.00021917,2]
[372492616,1752663047196,-490.0,0.00021917,2]
[372492618,1752663047205,-460.0,0.00021917,2]
[372492620,1752663047217,-597.28,0.00021917,2]
[372492622,1752663047226,-1174.38,0.00021917,2]
[372492624,1752663047235,-469.93,0.00021917,2]
[372492625,1752663047246,-579.42,0.00021917,2]
[372492626,1752663047257,-460.0,0.00021917,2]
[372492628,1752663047267,-1146.77,0.00021917,2]
[372492630,1752663047276,-2023.63,0.00021917,2]
[372492631,1752663047287,-460.0,0.00021917,2]
[372492632,1752663047296,-460.0,0.00021917,2]
[372492633,1752663047306,-627.96,0.00021917,2]
[372492634,1752663047316,-2253.55,0.00021917,2]
[372492635,1752663047327,-151.253959,0.00021917,2]
[372492636,1752663047339,-692.22,0.00021917,2]
[372492637,1752663047349,-1146.891721,0.00021917,2]
[372492638,1752663047358,-597.05,0.00021917,2]
[372492639,1752663047368,-188.419998,0.00021917,2]
[372492640,1752663047377,-950.28,0.00021917,2]
[372492641,1752663047388,-1146.891721,0.00021917,2]
[372492642,1752663047397,-188.419998,0.00021917,2]
[372492643,1752663047408,-1146.891721,0.00021917,2]
[372492644,1752663047420,-188.419998,0.00021917,2]
[372492645,1752663047430,-597.04,0.00021917,2]
[372492646,1752663047439,-1146.891721,0.00021917,2]
[372492647,1752663047450,-460.0,0.00021917,2]
[372492648,1752663047461,-188.419998,0.00021917,2]
[372492649,1752663047470,-500.0,0.00021917,2]
[372492650,1752663047480,-1146.891721,0.00021917,2]
[372492651,1752663047490,-500.0,0.00021917,2]
[372492652,1752663047499,-460.0,0.00021917,2]
[372492653,1752663047509,-188.419998,0.00021917,2]
[372492654,1752663047520,-460.0,0.00021917,2]
[372492655,1752663047529,-934.91,0.00021917,2]
[372492656,1752663047539,-1146.891721,0.00021917,2]
[372492658,1752663047548,-500.0,0.00021917,2]
[372492659,1752663047557,-1146.891721,0.00021917,2]
[372492661,1752663047567,-188.419998,0.00021917,2]
[372492663,1752663047576,-500.0,0.00021917,2]
[372492665,1752663047586,-460.0,0.00021917,2]
[372492666,1752663047596,-500.0,0.00021917,2]
[372492667,1752663047606,-188.419998,0.00021917,2]
[372492668,1752663047616,-1146.891721,0.00021917,2]
[372492669,1752663047625,-500.0,0.00021917,2]
[372492671,1752663047636,-1051.45,0.00021917,2]
[372492673,1752663047646,-188.419998,0.00021917,2]
[372492675,1752663047657,-1146.891721,0.00021917,2]
[372492677,1752663047666,-188.419998,0.00021917,2]
[372492678,1752663047676,-1146.891721,0.00021917,2]
[372492680,1752663047686,-2518.02,0.00021917,2]
[372492681,1752663047695,-188.419998,0.00021917,2]
[372492682,1752663047706,-1367.21,0.00021917,2]
[372492683,1752663047715,-460.0,0.00021917,2]
[372492684,1752663047725,-460.0,0.00021917,2]
[372492685,1752663047735,-1954.32,0.00021917,2]
[372492686,1752663047744,-460.0,0.00021917,2]
[372492687,1752663047753,-484.82907985,0.00021917,2]
[372492688,1752663047762,-1320.19,0.00021917,2]
[372492689,1752663047772,-460.0,0.00021917,2]
[372492690,1752663047781,-460.0,0.00021917,2]
[372492692,1752663047790,-499.42348266,0.00021917,2]
[372492693,1752663047800,-3449.55,0.00021917,2]
[372492695,1752663047809,-500.0,0.00021917,2]
[372492697,1752663047819,-460.0,0.00021917,2]
[372492699,1752663047828,-460.0,0.00021917,2]
[372492701,1752663047838,-527.48,0.00021917,2]
[372492703,1752663047848,-460.0,0.00021917,2]
[372492704,1752663047858,-460.0,0.00021917,2]
[372492705,1752663047867,-460.0,0.00021917,2]
[372492706,1752663047877,-575.98241143,0.00021917,2]
[372492707,1752663047887,-460.0,0.00021917,2]
[372492708,1752663047897,-460.0,0.00021917,2]
[372492709,1752663047906,-850.19,0.00021917,2]
[372492710,1752663047915,-689.36,0.00021917,2]
[372492711,1752663047926,-460.0,0.00021917,2]
[372492712,1752663047935,-3110.28,0.00021917,2]
[372492713,1752663047945,-802.2,0.00021917,2]
[372492714,1752663047955,-460.0,0.00021917,2]
[372492715,1752663047965,-460.0,0.00021917,2]
[372492716,1752663047974,-2098.67,0.00021917,2]
[372492717,1752663047984,-151.0,0.00021917,2]
[372492718,1752663047993,-940.26,0.00021917,2]
[372492719,1752663048002,-460.0,0.00021917,2]
[372492720,1752663048012,-151.0,0.00021917,2]
[372492721,1752663048021,-2979.04,0.00021917,2]
[372492722,1752663048031,-151.0,0.00021917,2]
[372492723,1752663048040,-151.0,0.00021917,2]
[372492724,1752663048050,-151.0,0.00021917,2]
[372492725,1752663048059,-460.0,0.00021917,2]
[372492726,1752663048069,-752.81,0.00021917,2]
[372492727,1752663048078,-945.82,0.00021917,2]
[372492728,1752663048088,-460.0,0.00021917,2]
[372492729,1752663048098,-460.78196901,0.00021917,2]
[372492730,1752663048107,-486.62,0.00021917,2]
[372492731,1752663048117,-460.0,0.00021917,2]
[372492732,1752663048126,-461.28,0.00021917,2]
[372492733,1752663048137,-1127.17,0.00021917,2]
[372492734,1752663048146,-1080.52,0.00021917,2]